bitfinex/quotes_BTCUSD_20220304
["timestamp","ask_amount","ask_price","bid_price","bid_amount"]
[1646433653524,0.00021617,38805.0,38795.0,0.63806746]
[1646433654525,0.03371259,38806.0,38795.0,0.63806746]
[1646433654727,0.00021617,38805.0,38795.0,0.63806746]
[1646433655125,0.35800896,38805.0,38795.0,0.63806746]
[1646433655726,0.35779279,38805.0,38795.0,0.63806746]
[1646433655927,0.35800896,38805.0,38795.0,0.63806746]
[1646433656973,0.35779279,38805.0,38795.0,0.63806746]
[1646433657177,0.35800896,38805.0,38795.0,0.63806746]
[1646433658677,0.35779279,38804.0,38795.0,0.63806746]
[1646433659074,0.00021617,38805.0,38795.0,0.63806746]
[1646433659075,0.35800896,38805.0,38795.0,0.63806746]
[1646433659275,0.35779279,38805.0,38795.0,0.63806746]
[1646433659675,0.35800896,38805.0,38795.0,0.63806746]
[1646433659876,0.1,38804.0,38795.0,0.63806746]
[1646433660076,0.45779279,38804.0,38795.0,0.63806746]
[1646433660277,0.46794661,38804.0,38795.0,0.63642866]
[1646433661328,0.36794661,38804.0,38795.0,0.63642866]
[1646433661528,0.35794661,38804.0,38795.0,0.63642866]
[1646433664670,0.01015382,38804.0,38795.0,0.63642866]
[1646433668623,0.36781807,38804.0,38795.0,0.63642866]
[1646433668828,0.01015382,38804.0,38795.0,0.63642866]
[1646433669624,0.13821963,38807.0,38795.0,0.63642866]
[1646433669625,0.13821963,38807.0,38806.0,0.12126604]
[1646433669925,0.06376456,38807.0,38806.0,0.10913944]
[1646433670324,0.16376456,38807.0,38806.0,0.10913944]
[1646433672773,0.06376456,38807.0,38806.0,0.10913944]
[1646433673174,0.03821963,38807.0,38806.0,0.10913944]
[1646433674375,0.03821963,38807.0,38806.0,0.10894744]
[1646433674376,0.03802663,38807.0,38806.0,0.10894744]
[1646433674776,0.03750333,38807.0,38806.0,0.10894744]
[1646433675177,0.06304453,38807.0,38806.0,0.10894744]
[1646433675377,0.03750333,38807.0,38806.0,0.10894744]
[1646433675626,0.06304429,38807.0,38806.0,0.10894744]
[1646433676524,0.06262829,38807.0,38806.0,0.10833944]
[1646433676730,0.06262829,38807.0,38806.0,0.23833944]
[1646433677026,0.39465102,38807.0,38806.0,0.23833944]
[1646433677227,0.49465102,38807.0,38806.0,0.23833944]
[1646433678028,0.49465102,38807.0,38806.0,0.23792344]
[1646433678029,0.03667133,38807.0,38806.0,0.23792344]
[1646433679983,0.03625533,38807.0,38806.0,0.23750844]
[1646433680182,0.13625533,38807.0,38806.0,0.23750844]
[1646433680380,0.13625533,38807.0,38806.0,0.2137576]
[1646433680681,0.18625533,38807.0,38806.0,0.2137576]
[1646433680982,0.49381902,38807.0,38806.0,0.2137576]
[1646433681987,0.49381902,38807.0,38806.0,0.2133426]
[1646433682784,0.39381902,38807.0,38806.0,0.2133426]
[1646433683044,0.03625533,38807.0,38806.0,0.2133426]
[1646433683846,0.03607633,38807.0,38806.0,0.2133426]
[1646433684452,0.00021591,38808.0,38806.0,0.2386926]
[1646433684649,0.35956369,38811.0,38806.0,0.2386926]
[1646433684845,0.00021591,38808.0,38806.0,0.2384556]
[1646433685648,0.35756369,38813.0,38806.0,0.2131056]
[1646433685850,0.34738469,38813.0,38806.0,0.2127486]
[1646433686047,0.13792684,38817.0,38806.0,0.2127486]
[1646433686048,0.00021591,38809.0,38806.0,0.2127486]
[1646433686879,0.03792684,38817.0,38806.0,0.2380986]
[1646433687083,0.03792684,38817.0,38806.0,0.2127486]
[1646433687280,0.03792684,38817.0,38807.0,0.3]
[1646433687482,0.03792684,38817.0,38808.0,0.377954]
[1646433687483,5.91e-06,38809.0,38808.0,0.377954]
[1646433687683,5.91e-06,38809.0,38808.0,0.677954]
[1646433687880,5.91e-06,38809.0,38808.0,0.703304]
[1646433688080,0.15007522,38821.0,38808.0,0.703304]
[1646433688282,1.04587522,38822.0,38811.0,0.02535]
[1646433688482,0.15007522,38824.0,38813.0,0.02504561]
[1646433688682,0.03778939,38825.0,38815.0,0.02504561]
[1646433688882,0.03778939,38825.0,38810.0,0.19335]
[1646433688883,0.01285,38829.0,38817.0,0.02504561]
[1646433689086,0.32754018,38834.0,38821.0,0.02504561]
[1646433689087,0.01285,38830.0,38821.0,0.02504561]
[1646433689383,0.1501779,38834.0,38828.0,0.0901937]
[1646433689586,0.1501779,38836.0,38830.0,0.02504561]
[1646433689783,0.40350368,38847.0,38831.0,0.377954]
[1646433689784,0.1501779,38840.0,38831.0,0.377954]
[1646433689982,0.01285,38844.0,38833.0,0.02504561]
[1646433690183,0.01285,38844.0,38834.0,0.02504561]
[1646433690389,0.01285,38846.0,38835.0,0.02504561]
[1646433690638,0.3275404,38847.0,38837.0,0.02504561]
[1646433690639,0.1773625,38847.0,38837.0,0.02504561]
[1646433690838,0.01285,38851.0,38839.0,0.02504561]
[1646433691041,0.01285,38854.0,38843.0,0.02504561]
[1646433691237,0.0506584,38855.0,38843.0,0.02504561]
[1646433691435,0.0378084,38855.0,38845.0,0.08944052]
[1646433691744,0.1501779,38856.0,38837.0,0.15]
[1646433691745,7.9e-06,38856.0,38849.0,0.02463161]
[1646433691947,0.21509464,38871.0,38856.0,6e-05]
[1646433691948,0.05,38871.0,38856.0,6e-05]
[1646433692142,0.05,38871.0,38857.0,0.02463161]
[1646433692143,0.03768188,38871.0,38857.0,0.02463161]
[1646433692338,0.20356141,38882.0,38858.0,0.377954]
[1646433692537,0.19856141,38882.0,38859.0,0.32463161]
[1646433692735,0.19856141,38882.0,38859.0,0.02463161]
[1646433692736,0.01285,38881.0,38859.0,0.02463161]
[1646433692938,0.01285,38881.0,38861.0,0.02463161]
[1646433693136,0.01285,38881.0,38861.0,0.05038161]
[1646433693336,0.01285,38881.0,38863.0,0.02463161]
[1646433693737,0.0506394,38881.0,38863.0,0.02463161]
[1646433694388,0.0377894,38881.0,38862.0,0.02421561]
[1646433694584,0.0377894,38881.0,38866.0,0.02421561]
[1646433694787,0.0377894,38881.0,38866.0,0.32421561]
[1646433695785,0.0377894,38881.0,38868.0,0.025744]
[1646433695983,0.0377894,38881.0,38868.0,0.34995961]
[1646433696188,0.01285,38887.0,38868.0,0.34995961]
[1646433696388,0.01285,38887.0,38868.0,0.41431361]
[1646433696586,0.01285,38890.0,38869.0,0.02421561]
[1646433696788,0.01285,38890.0,38874.0,0.025741]
[1646433696988,0.01285,38890.0,38869.0,0.02421561]
[1646433696989,0.00021575,38879.0,38869.0,0.02421561]
[1646433697187,0.00021575,38879.0,38869.0,0.32421561]
[1646433697587,0.00021575,38879.0,38869.0,0.02421561]
[1646433697787,0.01285,38890.0,38869.0,0.02421561]
[1646433698030,0.00021111,38876.0,38869.0,0.02421561]
[1646433698431,0.00021111,38876.0,38872.0,0.02421561]
[1646433698927,0.295,38890.0,38872.0,0.02421561]
[1646433699128,0.03776679,38891.0,38872.0,0.02421561]
[1646433699328,0.00021111,38876.0,38872.0,0.02421561]
[1646433699529,1.11e-06,38876.0,38875.0,0.40216961]
[1646433699729,1.11e-06,38876.0,38875.0,0.02535]
[1646433700132,0.03776679,38891.0,38875.0,0.02535]
[1646433700530,0.03776679,38891.0,38880.0,0.02535]
[1646433701782,0.00021571,38887.0,38880.0,0.02535]
[1646433701990,0.00021571,38887.0,38879.0,0.02535]
[1646433702388,0.00021571,38887.0,38881.0,0.02535]
[1646433702588,0.8958,38905.0,38876.0,0.003]
[1646433702589,0.9398,38904.0,38882.0,0.7]
[1646433702782,0.97729361,38904.0,38882.0,0.7]
[1646433702983,0.00021571,38885.0,38882.0,0.7]
[1646433703782,0.3,38900.0,38882.0,0.7]
[1646433704184,0.1,38900.0,38882.0,0.7]
[1646433704384,0.15,38900.0,38882.0,0.7]
[1646433704585,0.31285,38899.0,38882.0,0.7]
[1646433704785,0.1,38898.0,38882.0,0.7]
[1646433704986,0.15,38898.0,38882.0,0.7]
[1646433705191,0.064346,38897.0,38882.0,0.7]
[1646433705389,0.1,38898.0,38882.0,0.7]
[1646433706037,0.01703554,38899.0,38882.0,0.7]
[1646433706433,0.00021569,38895.0,38882.0,0.7]
[1646433707234,0.00021569,38895.0,38883.0,0.3]
[1646433707434,0.15,38900.0,38883.0,0.3]
[1646433707636,0.00021568,38895.0,38883.0,0.3]
[1646433707838,0.00021568,38895.0,38883.0,0.29]
[1646433708535,0.06434,38901.0,38883.0,0.29]
[1646433708835,0.00021569,38895.0,38883.0,0.29]
[1646433709694,0.06434,38901.0,38883.0,0.29]
[1646433709894,0.07719,38901.0,38883.0,0.29]
[1646433710095,0.12719,38901.0,38883.0,0.29]
[1646433710692,0.12719,38901.0,38884.0,0.61965039]
[1646433710891,0.12719,38901.0,38884.0,0.61949339]
[1646433711093,0.12719,38901.0,38885.0,0.3]
[1646433711294,0.00021597,38895.0,38885.0,0.3]
[1646433712093,0.06434,38901.0,38885.0,0.3]
[1646433712494,0.00021596,38895.0,38886.0,0.02535]
[1646433712795,0.00021596,38895.0,38884.0,0.61949339]
[1646433713436,0.31285,38899.0,38884.0,0.61949339]
[1646433713645,0.00021596,38895.0,38884.0,0.61949339]
[1646433713835,0.06456496,38895.0,38884.0,0.61949339]
[1646433714035,0.00021596,38895.0,38884.0,0.61949339]
[1646433714637,0.3,38897.0,38884.0,0.61949339]
[1646433714840,0.00021024,38895.0,38884.0,0.61949339]
[1646433715035,0.06455924,38895.0,38884.0,0.61949339]
[1646433715936,0.064349,38895.0,38884.0,0.61949339]
[1646433716137,0.06455924,38895.0,38884.0,0.61949339]
[1646433716982,0.064349,38895.0,38884.0,0.61949339]
[1646433717185,0.02535,38894.0,38884.0,0.61949339]
[1646433717882,0.02535,38894.0,38884.0,0.61449339]
[1646433718084,0.11456508,38895.0,38884.0,0.61449339]
[1646433718286,0.114349,38895.0,38884.0,0.61449339]
[1646433718483,0.06456507,38895.0,38884.0,0.61449339]
[1646433719285,0.08991507,38895.0,38884.0,0.61449339]
[1646433719487,0.02535,38894.0,38884.0,0.61449339]
[1646433719885,0.11456508,38895.0,38884.0,0.61449339]
[1646433719886,0.05716648,38895.0,38884.0,0.61449339]
[1646433720286,0.08251648,38895.0,38884.0,0.61449339]
[1646433720526,0.0823004,38895.0,38884.0,0.61449339]
[1646433720931,0.02556608,38895.0,38884.0,0.61449339]
[1646433721328,0.02556608,38895.0,38884.0,0.60949339]
[1646433721828,0.02535,38897.0,38884.0,0.60449339]
[1646433722028,0.00021608,38895.0,38884.0,0.60449339]
[1646433723029,0.02535,38897.0,38884.0,0.60449339]
[1646433723230,0.00021608,38895.0,38884.0,0.60449339]
[1646433724294,0.139694,38898.0,38884.0,0.60449339]
[1646433724295,0.064344,38898.0,38885.0,0.3]
[1646433724600,0.00021608,38895.0,38884.0,0.60449339]
[1646433725391,0.01285,38901.0,38884.0,0.60449339]
[1646433725595,0.00021608,38895.0,38884.0,0.60449339]
[1646433726692,0.02535,38899.0,38884.0,0.60449339]
[1646433726893,0.00021608,38895.0,38884.0,0.60449339]
[1646433727104,0.08477773,38900.0,38885.0,0.7]
[1646433727295,0.064342,38900.0,38885.0,1.0]
[1646433727494,0.064342,38900.0,38885.0,0.7]
[1646433727899,0.064342,38900.0,38885.0,1.0]
[1646433729036,0.064342,38900.0,38885.0,0.7]
[1646433729238,0.064342,38900.0,38885.0,1.0]
[1646433729738,0.064342,38900.0,38885.0,0.7]
[1646433729939,0.064342,38900.0,38885.0,1.0]
[1646433730340,0.00021001,38897.0,38885.0,1.0]
[1646433731343,0.064342,38900.0,38885.0,1.0]
[1646433731642,0.00021,38897.0,38885.0,1.0]
[1646433732281,0.00021,38897.0,38885.0,0.995]
[1646433732681,0.064341,38900.0,38885.0,0.995]
[1646433732881,0.00021,38897.0,38885.0,0.995]
[1646433733380,0.00021,38897.0,38885.0,0.695]
[1646433733582,0.00021,38897.0,38885.0,0.995]
[1646433733784,0.064341,38900.0,38885.0,0.995]
[1646433733981,0.00021624,38897.0,38885.0,0.995]
[1646433734382,0.00249927,38895.0,38885.0,0.995]
[1646433734983,0.00249927,38895.0,38885.0,0.994843]
[1646433737137,0.00249927,38895.0,38885.0,0.994685]
[1646433738136,0.00249927,38895.0,38885.0,0.694685]
[1646433738536,0.00249927,38895.0,38885.0,0.989685]
[1646433738940,0.00249927,38895.0,38885.0,0.689685]
[1646433739896,0.00249927,38895.0,38885.0,0.989685]
[1646433740998,0.00249927,38895.0,38885.0,0.984685]
[1646433741397,0.00249927,38895.0,38885.0,0.684685]
[1646433741604,0.0382,38900.0,38885.0,0.684685]
[1646433741605,0.01134909,38900.0,38885.0,0.684685]
[1646433741796,0.01134909,38900.0,38885.0,0.984685]
[1646433743429,0.01134909,38900.0,38885.0,1.01042]
[1646433743629,0.01134909,38900.0,38885.0,0.984685]
[1646433744630,0.01134909,38900.0,38885.0,1.010421]
[1646433746131,0.00021635,38899.0,38885.0,0.984685]
[1646433746331,0.00021635,38899.0,38885.0,1.01042]
[1646433746980,0.01134909,38900.0,38885.0,1.01042]
[1646433747184,0.01134909,38900.0,38885.0,0.984685]
[1646433747384,0.00021635,38899.0,38886.0,0.025735]
[1646433748282,0.01134909,38900.0,38886.0,0.020735]
[1646433748582,0.00021635,38899.0,38886.0,0.020735]
[1646433748983,0.00021635,38899.0,38885.0,0.99970459]
[1646433749186,0.00021635,38899.0,38885.0,0.684685]
[1646433749387,0.01134909,38900.0,38885.0,0.684685]
[1646433749684,0.00021635,38899.0,38885.0,0.684685]
[1646433750534,0.01134909,38900.0,38885.0,0.710421]
[1646433750733,0.01134909,38900.0,38885.0,0.684685]
[1646433750933,0.00021635,38899.0,38885.0,0.684685]
[1646433751135,0.214341,38903.0,38885.0,0.684685]
[1646433751736,0.214341,38903.0,38885.0,0.97389534]
[1646433752136,0.114341,38903.0,38886.0,0.3]
[1646433752936,0.10145534,38903.0,38886.0,0.3]
[1646433753339,0.10145534,38903.0,38887.0,0.377954]
[1646433753538,0.03711434,38903.0,38888.0,0.325734]
[1646433753739,0.03711434,38903.0,38889.0,0.377954]
[1646433753938,0.03711434,38903.0,38890.0,0.3]
[1646433754138,0.03857169,38904.0,38886.0,0.31285]
[1646433754588,0.00021636,38901.0,38886.0,0.31285]
[1646433755486,0.03857169,38904.0,38886.0,0.31285]
[1646433755688,0.00021634,38901.0,38886.0,0.31285]
[1646433756586,0.07535,38903.0,38886.0,0.31285]
[1646433756587,0.05,38903.0,38886.0,0.31285]
[1646433756787,0.00021634,38901.0,38886.0,0.01285]
[1646433757892,0.1,38903.0,38886.0,0.01285]
[1646433758128,0.00021634,38901.0,38886.0,0.01285]
[1646433758328,0.00021634,38901.0,38886.0,0.14285]
[1646433758932,0.1,38903.0,38886.0,0.14285]
[1646433759330,0.00021634,38901.0,38887.0,0.377954]
[1646433760130,0.1,38903.0,38887.0,0.377954]
[1646433760535,0.00021635,38901.0,38892.0,0.377954]
[1646433761034,0.00021635,38901.0,38892.0,0.427954]
[1646433761431,0.00113489,38909.0,38892.0,0.427954]
[1646433761432,0.00026968,38909.0,38892.0,0.427954]
[1646433761786,0.00021636,38901.0,38899.0,0.377954]
[1646433762585,0.00026968,38909.0,38899.0,0.377954]
[1646433762989,0.02644547,38911.0,38899.0,0.377954]
[1646433766433,0.02666051,38911.0,38901.0,0.025726]
[1646433766633,0.02666051,38911.0,38902.0,0.377954]
[1646433767034,0.02666051,38911.0,38896.0,0.3]
[1646433767236,0.02666051,38911.0,38895.0,0.004]
[1646433767434,0.02644547,38911.0,38895.0,0.004]
[1646433767737,0.0266605,38911.0,38894.0,0.3]
[1646433768232,0.0266605,38911.0,38897.0,0.025729]
[1646433768434,0.0266605,38911.0,38894.0,0.43]
[1646433768639,0.02644547,38911.0,38894.0,0.43]
[1646433768838,0.0266605,38911.0,38895.0,0.377954]
[1646433769037,0.0266605,38911.0,38896.0,0.3]
[1646433769279,0.0266605,38911.0,38897.0,0.090042]
[1646433769486,0.0266605,38911.0,38898.0,0.3]
[1646433769681,0.0266605,38911.0,38897.0,0.025729]
[1646433769883,0.02644547,38911.0,38897.0,0.025729]
[1646433770181,0.02666051,38911.0,38897.0,0.025729]
[1646433770781,0.02666051,38911.0,38897.0,0.376777]
[1646433770981,0.02644547,38911.0,38898.0,0.3]
[1646433771284,0.02644547,38911.0,38897.0,0.376777]
[1646433771682,0.1,38914.0,38896.0,0.2426]
[1646433771883,0.3,38913.0,38896.0,0.2426]
[1646433772082,0.3,38913.0,38897.0,0.025729]
[1646433773147,0.1,38914.0,38897.0,0.325729]
[1646433773350,0.07535,38915.0,38897.0,0.325729]
[1646433773947,0.0744689,38915.0,38897.0,0.325729]
[1646433774947,0.16465421,38916.0,38897.0,0.325729]
[1646433774948,0.19000421,38916.0,38897.0,0.325729]
[1646433775151,0.00021531,38911.0,38897.0,0.325729]
[1646433775348,0.00021531,38911.0,38898.0,0.376777]
[1646433775651,0.00021531,38911.0,38899.0,0.3]
[1646433775849,0.00021531,38911.0,38898.0,0.376777]
[1646433776051,0.00021531,38911.0,38899.0,0.3]
[1646433776248,0.00021531,38911.0,38898.0,0.376777]
[1646433776448,0.00021531,38911.0,38899.0,0.3]
[1646433776648,0.00021531,38911.0,38897.0,0.325729]
[1646433776881,0.00021531,38911.0,38898.0,0.376777]
[1646433777081,0.00033021,38916.0,38899.0,0.3]
[1646433777484,0.00033021,38916.0,38897.0,0.325729]
[1646433779784,0.00021371,38911.0,38897.0,0.325729]
[1646433779983,0.00021371,38911.0,38898.0,0.376777]
[1646433780185,0.00021371,38911.0,38899.0,0.3]
[1646433780387,0.00021371,38911.0,38900.0,0.376777]
[1646433780631,0.00033021,38916.0,38900.0,0.376777]
[1646433780831,0.00033021,38916.0,38897.0,0.325729]
[1646433780832,0.00021535,38911.0,38897.0,0.325729]
[1646433781030,0.00021535,38911.0,38898.0,0.376777]
[1646433781230,0.00021535,38911.0,38899.0,0.3]
[1646433781429,0.35892547,38911.0,38900.0,0.376777]
[1646433781634,0.35892547,38911.0,38901.0,0.3]
[1646433781829,0.35871012,38911.0,38897.0,0.325729]
[1646433782030,0.35871012,38911.0,38898.0,0.376777]
[1646433782230,0.35892547,38911.0,38900.0,0.025727]
[1646433782431,0.35892547,38911.0,38901.0,0.376777]
[1646433784136,0.00021535,38911.0,38904.0,0.376777]
[1646433784382,0.3968559,38914.0,38903.0,0.025724]
[1646433784683,0.00019442,38911.0,38904.0,0.376777]
[1646433784980,0.00019442,38911.0,38906.0,0.376777]
[1646433785383,0.03814578,38914.0,38906.0,0.376777]
[1646433785784,0.00019444,38911.0,38906.0,0.376777]
[1646433785987,5.415e-05,38911.0,38906.0,0.376777]
[1646433786585,0.03814578,38914.0,38906.0,0.376777]
[1646433786785,0.00033021,38916.0,38906.0,0.376777]
[1646433786986,0.00033021,38916.0,38907.0,0.3]
[1646433787185,0.00033021,38916.0,38903.0,0.025724]
[1646433787385,0.00033021,38916.0,38906.0,0.13]
[1646433787586,0.00033021,38916.0,38907.0,0.376777]
[1646433788235,0.00021548,38913.0,38907.0,0.376777]
[1646433788832,0.00021548,38913.0,38908.0,0.3]
[1646433789033,0.00033021,38916.0,38909.0,0.376777]
[1646433789433,0.00033021,38916.0,38906.0,0.13]
[1646433789434,0.00021547,38913.0,38906.0,0.13]
[1646433789634,0.00021547,38913.0,38907.0,0.676777]
[1646433790036,0.00021547,38913.0,38907.0,0.376777]
[1646433790235,0.7837,38919.0,38916.0,0.19945432]
[1646433791435,0.7837,38919.0,38916.0,0.19929632]
[1646433792889,0.78391499,38919.0,38916.0,0.19929632]
[1646433793891,0.7837,38919.0,38916.0,0.19929632]
[1646433794090,0.1,38918.0,38916.0,0.19929632]
[1646433794888,0.78391499,38919.0,38916.0,0.19929632]
[1646433795188,0.7837,38919.0,38916.0,0.19913832]
[1646433795388,0.78391499,38919.0,38916.0,0.19913832]
[1646433796036,0.00021499,38919.0,38916.0,0.19913832]
[1646433796238,0.92148105,38924.0,38916.0,0.19913832]
[1646433796638,0.00020774,38919.0,38916.0,0.19913832]
[1646433797537,0.97148105,38924.0,38916.0,0.19913832]
[1646433797740,0.00020774,38919.0,38916.0,0.19913832]
[1646433798740,0.08778105,38924.0,38919.0,0.2]
[1646433798943,0.03778105,38924.0,38919.0,0.2]
[1646433799582,0.03778105,38924.0,38919.0,0.199842]
[1646433800183,0.00021559,38923.0,38919.0,0.199842]
[1646433801086,0.03778105,38924.0,38919.0,0.199842]
[1646433801285,0.00021559,38923.0,38919.0,0.199842]
[1646433801686,0.00021559,38923.0,38921.0,0.376777]
[1646433801886,0.00021559,38923.0,38919.0,0.199684]
[1646433802286,0.03774183,38926.0,38924.0,0.19978441]
[1646433802587,0.00086224,38929.0,38924.0,0.19978441]
[1646433802788,0.00086224,38929.0,38925.0,0.376777]
[1646433803347,0.00086224,38929.0,38927.0,0.376777]
[1646433803543,0.41023835,38938.0,38927.0,0.376777]
[1646433803744,0.06428044,38941.0,38925.0,0.3]
[1646433803745,0.41023835,38939.0,38925.0,0.3]
[1646433803941,0.41023835,38939.0,38924.0,0.19978441]
[1646433804143,0.41023835,38938.0,38924.0,0.19962641]
[1646433804341,0.41023835,38939.0,38924.0,0.19962641]
[1646433804542,0.41023835,38939.0,38925.0,0.3]
[1646433804741,0.41023835,38940.0,38925.0,0.3]
[1646433804941,0.00021479,38933.0,38925.0,0.3]
[1646433805142,0.00021479,38933.0,38926.0,0.376777]
[1646433805941,0.1,38941.0,38924.0,0.19962641]
[1646433806142,0.41023835,38942.0,38924.0,0.19962641]
[1646433806143,0.00021479,38931.0,38926.0,0.376777]
[1646433807189,1.13745132,38943.0,38925.0,0.3]
[1646433807190,0.35375132,38943.0,38925.0,0.3]
[1646433807489,0.00021479,38930.0,38925.0,0.01284]
[1646433807689,0.00021479,38930.0,38926.0,0.376777]
[1646433807891,0.3199903,38944.0,38927.0,0.7]
[1646433808089,0.180464,38945.0,38927.0,0.7]
[1646433808291,0.230464,38945.0,38927.0,0.7]
[1646433808488,0.230464,38945.0,38928.0,0.238442]
[1646433808489,0.330464,38945.0,38928.0,0.238442]
[1646433808689,0.1,38944.0,38928.0,0.238442]
[1646433809592,0.064275,38943.0,38928.0,0.238442]
[1646433809791,0.00020758,38938.0,38928.0,0.238442]
[1646433809988,0.32067158,38945.0,38928.0,0.238442]
[1646433810192,0.22067158,38945.0,38928.0,0.538442]
[1646433810537,0.22067158,38945.0,38928.0,0.238442]
[1646433810538,0.1,38944.0,38928.0,0.238442]
[1646433810730,0.22067158,38945.0,38928.0,0.238442]
[1646433811334,0.22067158,38945.0,38929.0,0.01284]
[1646433812337,0.7837,38944.0,38929.0,0.01284]
[1646433812534,0.8479759,38944.0,38929.0,0.01284]
[1646433812734,0.8337,38942.0,38929.0,0.01284]
[1646433812934,0.897977,38942.0,38929.0,0.01284]
[1646433813233,0.1,38941.0,38929.0,0.01284]
[1646433813435,0.075,38941.0,38929.0,0.01284]
[1646433813741,0.075,38941.0,38924.0,0.19962641]
[1646433813742,0.7837,38939.0,38924.0,0.19962641]
[1646433814287,0.98667204,38939.0,38921.0,0.3]
[1646433814491,1.05095404,38939.0,38921.0,0.3]
[1646433814689,1.05095404,38939.0,38921.0,0.302]
[1646433814890,1.05095404,38939.0,38921.0,0.002]
[1646433814891,0.58407359,38937.0,38921.0,0.002]
[1646433815094,0.01260875,38934.0,38921.0,0.002]
[1646433815292,0.79630875,38934.0,38921.0,0.002]
[1646433815691,0.7837,38931.0,38921.0,0.002]
[1646433815892,0.3,38930.0,38921.0,0.002]
[1646433816093,0.48964855,38930.0,38903.0,0.38565882]
[1646433816295,0.48964855,38930.0,38902.0,0.29852532]
[1646433816296,0.7837,38927.0,38906.0,0.7923]
[1646433816495,0.7837,38924.0,38906.0,0.7923]
[1646433816691,0.128618,38925.0,38906.0,1.02652632]
[1646433816692,0.7837,38922.0,38906.0,1.02652632]
[1646433816891,1.0837,38921.0,38906.0,1.02652632]
[1646433817096,1.1837,38921.0,38906.0,0.47812632]
[1646433817292,0.8837,38920.0,38906.0,0.47812632]
[1646433817494,0.7837,38918.0,38900.0,0.00576807]
[1646433817693,0.45,38917.0,38900.0,0.00576807]
[1646433817891,0.15,38917.0,38900.0,0.005]
[1646433818344,0.3,38916.0,38906.0,0.13]
[1646433818744,0.7837,38915.0,38906.0,0.13]
[1646433818949,0.9337,38913.0,38906.0,0.13]
[1646433819151,0.35,38910.0,38900.0,0.005]
[1646433819347,0.7587,38911.0,38900.0,0.005]
[1646433819348,0.7587,38908.0,38900.0,0.005]
[1646433819553,0.7587,38908.0,38906.0,0.2]
[1646433819554,1.0587,38907.0,38906.0,0.2]
[1646433819748,1.1087,38907.0,38906.0,0.0001]
[1646433819944,1.28363383,38907.0,38900.0,0.00576807]
[1646433820145,0.7587,38905.0,38900.0,0.00576807]
[1646433820344,0.7587,38903.0,38900.0,0.005]
[1646433820545,0.7587,38901.0,38900.0,0.005]
[1646433820848,1.2087,38901.0,38900.0,0.00523682]
[1646433821243,1.2087,38901.0,38900.0,3.682e-05]
[1646433821448,2.318e-05,38898.0,38895.0,0.006]
[1646433821647,0.7587,38897.0,38895.0,0.006]
[1646433821897,1.1587,38896.0,38895.0,0.006]
[1646433822101,1.3087,38896.0,38895.0,0.006]
[1646433822301,1.31289445,38896.0,38895.0,0.006]
[1646433822497,1.31289445,38896.0,38889.0,0.001]
[1646433822700,0.7587,38894.0,38889.0,0.001]
[1646433822903,0.9087,38890.0,38889.0,0.001]
[1646433823102,0.9087,38890.0,38886.0,0.001]
[1646433823103,1.2087,38890.0,38886.0,0.001]
[1646433823304,1.2087,38890.0,38880.0,0.001]
[1646433823305,0.7587,38885.0,38884.0,0.25495507]
[1646433823502,1.0587,38885.0,38884.0,0.25495507]
[1646433823698,1.2087,38885.0,38884.0,0.10715507]
[1646433824497,1.273077,38885.0,38884.0,0.10715507]
[1646433825096,1.32685455,38885.0,38884.0,0.10715507]
[1646433825546,1.35374396,38885.0,38884.0,0.09613957]
[1646433825939,1.39176039,38885.0,38884.0,0.09330698]
[1646433826941,1.3761973,38885.0,38884.0,0.09330698]
[1646433827444,1.77856229,38885.0,38884.0,0.09330698]
[1646433828640,1.77856229,38885.0,38884.0,0.22330698]
[1646433828843,1.77356229,38885.0,38884.0,0.22330698]
[1646433829490,1.3711973,38885.0,38884.0,0.22330698]
[1646433829890,1.3711973,38885.0,38884.0,0.09330698]
[1646433830390,1.28798284,38885.0,38884.0,0.09330698]
[1646433830791,1.29217729,38885.0,38884.0,0.09330698]
[1646433831592,1.50935751,38885.0,38884.0,0.05527054]
[1646433835136,1.50935751,38885.0,38884.0,0.05497954]
[1646433835937,0.7,38884.0,38880.0,0.001]
[1646433836141,0.7587,38882.0,38880.0,0.000645]
[1646433836439,0.7587,38882.0,38865.0,0.000645]
[1646433836440,1.1587,38881.0,38865.0,0.000645]
[1646433836785,1.1587,38881.0,38859.0,0.002]
[1646433836786,0.01266408,38875.0,38859.0,0.002]
[1646433836992,0.002355,38870.0,38859.0,0.002]
[1646433837187,0.8087,38873.0,38859.0,0.002]
[1646433837391,1.1587,38872.0,38859.0,0.002]
[1646433837593,0.88750549,38867.0,38863.0,0.00074646]
[1646433837889,0.7587,38865.0,38863.0,0.00074646]
[1646433838286,0.8587,38864.0,38863.0,0.00074646]
[1646433838485,0.8587,38864.0,38859.0,0.002]
[1646433838687,0.8587,38864.0,38860.0,0.00074652]
[1646433839686,0.8587,38864.0,38859.0,0.002]
[1646433839687,0.7587,38863.0,38859.0,0.002]
[1646433839887,0.1,38864.0,38859.0,0.002]
[1646433840089,0.7837,38864.0,38859.0,0.002]
[1646433840289,0.8837,38863.0,38859.0,0.002]
[1646433840941,0.1,38863.0,38859.0,0.002]
[1646433841140,0.84810149,38867.0,38863.0,0.3]
[1646433841141,0.1,38867.0,38863.0,0.3]
[1646433841539,0.002,38868.0,38863.0,0.3]
[1646433841939,0.848088,38872.0,38863.0,0.3]
[1646433842340,0.8837,38871.0,38863.0,0.3]
[1646433842739,1.05025147,38871.0,38863.0,0.3]
[1646433843541,1.05025147,38871.0,38863.0,0.30023036]
[1646433843742,0.7837,38868.0,38863.0,0.30023036]
[1646433843942,0.064399,38867.0,38863.0,0.30023036]
[1646433844141,0.7837,38868.0,38863.0,0.30023036]
[1646433844388,0.7837,38868.0,38863.0,0.3]
[1646433845189,0.064397,38867.0,38863.0,0.3]
[1646433845792,0.848097,38867.0,38863.0,0.3]
[1646433846192,0.7837,38865.0,38863.0,0.3]
[1646433846593,0.8837,38864.0,38863.0,0.3]
[1646433846793,0.1,38864.0,38863.0,0.3]
[1646433846992,0.06859395,38867.0,38863.0,0.3]